bitfinex/quotes_SOLUSD_20260302
["timestamp","ask_amount","ask_price","bid_price","bid_amount"]
[1772457669417,11.93616538,83.779,83.746,29.85217204]
[1772457669619,2.33105766,83.778,83.742,0.28432314]
[1772457669835,3.6606351,83.78,83.742,0.28432314]
[1772457670133,3.6606351,83.79,83.751,2.21289133]
[1772457670337,2.33105766,83.796,83.761,2.21289133]
[1772457671121,14.26482774,83.796,83.761,2.21289133]
[1772457671462,14.26482774,83.796,83.763,2.21289133]
[1772457671638,9.2272696,83.8,83.763,2.21289133]
[1772457672240,11.93331662,83.799,83.763,2.21289133]
[1772457673320,2.33105766,83.798,83.763,2.21289133]
[1772457674025,2.1934622,83.789,83.755,2.32776361]
[1772457675245,11.93360144,83.797,83.761,2.32776361]
[1772457675540,0.1,83.8,83.771,2.32776361]
[1772457676046,9.2272696,83.8,83.772,11.93716277]
[1772457676334,2.1934622,83.799,83.772,11.93716277]
[1772457677037,2.1934622,83.789,83.755,2.32776361]
[1772457677341,2.1934622,83.789,83.757,2.32776361]
[1772457678117,11.93488327,83.788,83.758,11.93915805]
[1772457678323,14.25686889,83.788,83.759,2.15953352]
[1772457678539,2.32198562,83.787,83.759,2.15953352]
[1772457678728,2.32198562,83.779,83.752,2.15953352]
[1772457679231,11.93488327,83.788,83.752,2.15953352]
[1772457679540,0.1,83.8,83.751,11.94015593]
[1772457679541,11.5514874,83.8,83.761,2.15953352]
[1772457679738,2.32198562,83.796,83.761,2.15953352]
[1772457681048,2.32198562,83.789,83.761,2.15953352]
[1772457681236,2.32198562,83.789,83.761,14.09818039]
[1772457681437,2.32198562,83.789,83.762,2.15953352]
[1772457681735,2.32198562,83.798,83.762,2.15953352]
[1772457682124,9.12950178,83.78,83.756,2.15953352]
[1772457682429,2.32198562,83.782,83.756,2.15953352]
[1772457683134,9.12950178,83.78,83.756,2.15953352]
[1772457683451,2.32198562,83.778,83.75,11.94015851]
[1772457683639,2.32198562,83.778,83.751,2.15953352]
[1772457683948,11.93566835,83.783,83.751,2.15953352]
[1772457684542,14.25765397,83.783,83.751,2.15953352]
[1772457686475,14.25765397,83.783,83.753,2.15953352]
[1772457687427,2.32198562,83.79,83.761,2.15953352]
[1772457687645,2.32198562,83.789,83.761,2.15953352]
[1772457687851,2.32198562,83.788,83.761,2.15953352]
[1772457688846,2.32198562,83.786,83.761,2.15953352]
[1772457689232,2.32198562,83.786,83.762,14.09812142]
[1772457689544,9.12950178,83.79,83.762,14.09812142]
[1772457689545,11.93331662,83.799,83.763,2.15953352]
[1772457689956,11.93331662,83.799,83.771,2.15953352]
[1772457690246,0.1,83.8,83.781,2.15953352]
[1772457690456,0.1,83.8,83.78,9.12950178]
[1772457690457,11.93331662,83.799,83.771,2.15953352]
[1772457691035,11.93331662,83.799,83.773,2.15953352]
[1772457691546,9.12950178,83.79,83.767,14.09740881]
[1772457691752,2.32198562,83.792,83.767,14.09740881]
[1772457691934,2.32198562,83.792,83.768,2.15953352]
[1772457694158,2.32198562,83.792,83.77,2.15953352]
[1772457694540,11.93331662,83.799,83.77,2.15953352]
[1772457694733,2.32198562,83.798,83.77,2.15953352]
[1772457695441,2.32198562,83.798,83.772,2.15953352]
[1772457698251,2.32198562,83.798,83.774,2.15953352]
[1772457698647,0.1,83.8,83.774,2.15953352]
[1772457700562,0.1,83.8,83.776,2.15953352]
[1772457700737,0.1,83.8,83.768,2.15953352]
[1772457700738,2.32198562,83.789,83.768,2.15953352]
[1772457700939,2.32198562,83.793,83.769,11.93759027]
[1772457701250,6.07319573,83.8,83.77,2.15953352]
[1772457701444,2.32198562,83.799,83.77,2.15953352]
[1772457702253,2.32198562,83.799,83.772,2.15953352]
[1772457702758,0.1,83.8,83.78,3.65121011]
[1772457702947,0.1,83.8,83.781,2.15953352]
[1772457703752,11.93046922,83.819,83.791,2.15953352]
[1772457704268,0.1,83.82,83.793,2.15953352]
[1772457705248,0.1,83.82,83.801,2.15953352]
[1772457709578,2.40365539,83.82,83.801,2.15953352]
[1772457709867,2.30365539,83.819,83.781,2.35169226]
[1772457710172,2.30365539,83.818,83.785,2.35169226]
[1772457710546,0.1,83.82,83.791,2.35169226]
[1772457711270,11.93046922,83.819,83.791,2.35169226]
[1772457711567,14.23412461,83.819,83.791,2.35169226]
[1772457713163,0.1,83.82,83.793,2.35169226]
[1772457714753,0.1,83.82,83.792,11.93431353]
[1772457714754,2.30365539,83.843,83.811,2.35169226]
[1772457714952,2.30365539,83.843,83.792,41.77009737]
[1772457714953,11.92620067,83.849,83.821,2.35169226]
[1772457715376,0.2,83.85,83.823,2.35169226]
[1772457715556,0.2,83.85,83.822,11.93004223]
[1772457715557,0.2,83.85,83.83,3.65121011]
[1772457715761,0.2,83.85,83.831,2.35169226]
[1772457715968,29.80786215,83.871,83.824,0.28432314]
[1772457715969,0.1,83.9,83.845,2.35169226]
[1772457716273,11.91767271,83.909,83.886,2.35169226]
[1772457716510,2.30365539,83.899,83.861,2.35169226]
[1772457716656,2.30365539,83.899,83.871,2.35169226]
[1772457717166,11.91767271,83.909,83.871,2.35169226]
[1772457717167,2.30365539,83.907,83.871,2.35169226]
[1772457717477,0.2,83.91,83.881,2.35169226]
[1772457717658,2.30365539,83.909,83.881,2.35169226]
[1772457717859,14.2213281,83.909,83.881,2.35169226]
[1772457718068,2.30365539,83.908,83.881,2.35169226]
[1772457718283,2.30365539,83.899,83.863,2.35169226]
[1772457718457,2.30365539,83.899,83.871,2.35169226]
[1772457719074,2.30365539,83.907,83.872,0.14216157]
[1772457719266,0.2,83.91,83.883,2.35169226]
[1772457720080,1e-08,83.91,83.885,2.35169226]
[1772457720281,1e-08,83.91,83.901,2.35169226]
[1772457720484,1e-08,83.91,83.893,2.35169226]
[1772457720986,2.30365539,83.908,83.881,2.35169226]
[1772457721360,2.30365539,83.908,83.882,11.92150878]
[1772457721565,2.30365539,83.908,83.883,2.35169226]
[1772457722389,11.91795678,83.907,83.883,2.35169226]
[1772457722568,14.22161217,83.907,83.883,2.35169226]
[1772457722980,2.30365539,83.906,83.87,3.65121011]
[1772457723171,2.30365539,83.889,83.851,2.35169226]
[1772457723374,2.30365539,83.869,83.841,2.35169226]
[1772457723583,2.30365539,83.869,83.832,2.35169226]
[1772457723883,2.30365539,83.859,83.832,2.35169226]
[1772457724786,2.30365539,83.859,83.824,2.35169226]
[1772457725003,2.30365539,83.849,83.815,2.35169226]
[1772457725173,2.30365539,83.839,83.807,2.35169226]
[1772457725364,2.30365539,83.837,83.807,2.35169226]
[1772457726277,3.65121011,83.83,83.807,2.35169226]
[1772457726497,3.65121011,83.83,83.784,29.83854328]
[1772457726498,11.42462836,83.83,83.791,2.35169226]
[1772457726972,9.12097297,83.82,83.791,2.35169226]
[1772457727367,11.93046922,83.819,83.791,2.35169226]
[1772457727594,2.30365539,83.83,83.782,2.35169226]
[1772457727896,11.42462836,83.83,83.8,9.12097297]
[1772457728195,2.30365539,83.809,83.78,9.12097297]
[1772457728369,2.30365539,83.809,83.776,2.35169226]
[1772457728768,2.30365539,83.819,83.781,2.35169226]
[1772457729589,2.30365539,83.819,83.784,2.35169226]
[1772457729786,29.82225933,83.83,83.783,11.93559552]
[1772457729787,2.30365539,83.828,83.801,2.35169226]
[1772457729981,2.30365539,83.839,83.801,2.35169226]
[1772457730187,9.12097297,83.83,83.801,2.35169226]
[1772457730391,2.30365539,83.839,83.801,2.35169226]
[1772457730968,11.42462836,83.82,83.792,2.35169226]
[1772457731275,9.12097297,83.82,83.792,2.35169226]
[1772457731470,11.42462836,83.82,83.792,2.35169226]
[1772457731685,2.30365539,83.819,83.792,2.35169226]
[1772457732290,11.93061156,83.818,83.792,2.35169226]
[1772457732484,2.30365539,83.819,83.793,2.35169226]
[1772457732792,2.30365539,83.827,83.795,2.35169226]
[1772457732982,9.12097297,83.83,83.792,11.93418874]
[1772457732983,2.30365539,83.844,83.82,9.12097297]
[1772457733173,11.92705413,83.843,83.811,2.35169226]
[1772457733876,2.27455788,83.842,83.811,2.35169226]
[1772457734278,2.27455788,83.839,83.804,0.28432314]
[1772457734588,2.27455788,83.839,83.804,2.61877622]
[1772457735481,2.27455788,83.839,83.804,2.33445308]
[1772457736489,11.92776545,83.838,83.81,9.12097297]
[1772457736695,2.27455788,83.837,83.81,9.12097297]
[1772457736994,2.27455788,83.837,83.806,2.33445308]
[1772457737187,2.27455788,83.837,83.81,11.36007797]
[1772457737488,2.27455788,83.837,83.811,2.239105]
[1772457737786,2.22092797,83.829,83.791,2.52342814]
[1772457737987,2.22092797,83.829,83.797,2.239105]
[1772457738570,2.22092797,83.829,83.761,104.4]
[1772457738571,2.22092797,83.818,83.788,2.239105]
[1772457738776,2.22092797,83.818,83.79,9.1209099]
[1772457738983,2.22092797,83.818,83.791,2.239105]
[1772457742901,2.22092797,83.816,83.791,2.239105]
[1772457743484,11.34183787,83.83,83.801,2.239105]
[1772457744000,2.22092797,83.83,83.801,2.239105]
[1772457744191,2.22092797,83.838,83.811,2.239105]
[1772457744504,41.74020893,83.852,83.792,41.77009737]
[1772457744505,2.22092797,83.846,83.82,11.3600149]
[1772457744702,2.22092797,83.846,83.821,2.239105]
[1772457745082,14.14760125,83.846,83.822,14.16914723]
[1772457745601,2.22092797,83.845,83.822,2.239105]
[1772457745801,2.22092797,83.839,83.805,2.239105]
[1772457746007,2.22092797,83.845,83.811,2.239105]
[1772457747606,2.22092797,83.839,83.806,11.93226353]
[1772457748011,2.22092797,83.839,83.807,2.239105]
[1772457748599,14.14869342,83.838,83.809,2.239105]
[1772457749613,14.14869342,83.838,83.794,29.83475941]
[1772457749614,2.22092797,83.829,83.795,2.239105]
[1772457750002,2.22092797,83.829,83.796,2.239105]
[1772457751403,11.92776545,83.838,83.79,3.64735824]
[1772457751404,2.22092797,83.819,83.791,2.239105]
[1772457751611,11.93061156,83.818,83.792,2.239105]
[1772457752896,2.22092797,83.817,83.785,2.239105]
[1772457753117,2.22092797,83.799,83.766,2.239105]
[1772457753300,3.64735824,83.79,83.766,2.239105]
[1772457753495,2.22092797,83.809,83.771,2.239105]
[1772457753701,2.22092797,83.799,83.764,2.239105]
[1772457754097,2.22092797,83.789,83.764,2.239105]
[1772457755007,11.93488327,83.788,83.764,2.239105]
[1772457755815,14.15581124,83.788,83.764,2.239105]
[1772457757713,11.93516816,83.786,83.764,2.239105]
[1772457758150,9.12860496,83.78,83.75,9.12860496]
[1772457758418,2.22092797,83.779,83.751,2.239105]
[1772457759514,2.22092797,83.779,83.741,44.03464123]
[1772457759723,2.22092797,83.777,83.744,2.52342814]
[1772457761326,2.22092797,83.769,83.744,2.52342814]
[1772457761900,11.93630786,83.778,83.745,11.9410114]
[1772457761901,2.22092797,83.778,83.745,11.9410114]
[1772457762206,41.77358715,83.785,83.74,14.18076461]
[1772457762207,2.22092797,83.769,83.74,14.18076461]
[1772457762608,2.22092797,83.769,83.74,21.07026457]
[1772457762919,2.22092797,83.769,83.741,2.239105]
[1772457763297,9.12860496,83.78,83.745,2.239105]
[1772457763497,2.22092797,83.785,83.761,2.239105]
[1772457763701,11.93423066,83.793,83.771,2.239105]
[1772457763916,2.22092797,83.798,83.773,2.239105]
[1772457765305,2.22092797,83.798,83.768,11.93763974]
[1772457765506,2.22092797,83.789,83.756,2.239105]
[1772457765718,2.22092797,83.789,83.755,11.93958569]
[1772457765923,2.22092797,83.779,83.751,11.94015593]
[1772457767111,2.22092797,83.779,83.748,2.239105]
[1772457767310,2.31321752,83.769,83.74,9.12860496]
[1772457767618,2.31321752,83.769,83.738,11.9420096]
[1772457770226,2.31321752,83.759,83.738,11.9420096]
[1772457770925,2.31321752,83.767,83.739,2.26331042]
[1772457772028,2.31321752,83.765,83.74,11.94172438]
[1772457772415,2.31321752,83.765,83.74,14.2050348]
[1772457775327,2.31321752,83.765,83.741,2.26331042]
[1772457775738,2.31321752,83.765,83.743,2.26331042]
[1772457776035,2.31321752,83.765,83.742,11.94143918]
[1772457776336,2.31321752,83.765,83.742,14.2047496]
[1772457777236,2.31321752,83.765,83.743,2.26331042]
[1772457777420,14.24943826,83.779,83.751,2.26331042]
[1772457778437,2.31321752,83.778,83.751,2.26331042]
[1772457779321,2.31321752,83.776,83.752,11.94001337]
[1772457780334,11.93573798,83.782,83.753,2.26331042]
[1772457780550,2.31321752,83.781,83.753,2.26331042]
[1772457780734,11.93573798,83.782,83.74,3.65351229]
[1772457780735,2.31321752,83.779,83.74,3.65351229]
[1772457780935,2.31321752,83.759,83.725,2.26331042]
[1772457782030,51.43053593,83.793,83.714,2.26331042]
[1772457782031,3.65351229,83.75,83.714,2.26331042]
[1772457782333,2.31321752,83.749,83.714,2.26331042]
[1772457783340,3.65351229,83.74,83.714,2.26331042]
[1772457783540,2.31321752,83.739,83.714,2.26331042]
[1772457783839,2.31321752,83.739,83.715,11.94529056]
[1772457784054,2.31321752,83.739,83.716,2.26331042]
[1772457784832,11.93930059,83.757,83.721,2.26331042]
[1772457785242,11.93930059,83.757,83.717,41.80751818]
[1772457785243,2.31321752,83.773,83.741,2.26331042]
[1772457786144,2.31321752,83.771,83.743,2.26331042]
[1772457788432,2.31321752,83.769,83.743,2.26331042]
[1772457788633,2.31321752,83.769,83.742,11.94143918]
[1772457789229,2.31321752,83.769,83.742,14.2047496]
[1772457789440,2.31321752,83.769,83.743,2.26331042]
[1772457790148,14.2509503,83.768,83.744,11.94115399]
[1772457790336,2.31321752,83.767,83.744,11.94115399]
[1772457791434,2.31321752,83.767,83.745,2.26331042]
[1772457791846,2.31321752,83.767,83.746,11.94086881]
[1772457792039,2.31321752,83.776,83.747,2.26331042]
[1772457793337,2.31321752,83.776,83.74,11.94158894]
[1772457793527,2.24597925,83.768,83.74,11.94158894]
[1772457793733,2.24597925,83.768,83.741,2.356545]
[1772457794738,2.24597925,83.768,83.74,11.94158894]
[1772457794739,2.24597925,83.777,83.751,2.356545]
[1772457795953,14.18257206,83.776,83.751,2.356545]
[1772457796244,2.24597925,83.769,83.734,2.356545]
[1772457796452,2.24597925,83.769,83.741,2.356545]
[1772457798244,14.18358672,83.769,83.743,2.22442217]
[1772457798445,2.15417291,83.783,83.751,2.22442217]
[1772457798648,2.15417291,83.783,83.744,0.28432314]
[1772457798649,2.15417291,83.788,83.761,2.22442217]
[1772457800355,3.65212975,83.78,83.741,2.22442217]
[1772457800658,2.15417291,83.779,83.742,2.22442217]
[1772457801541,2.15417291,83.779,83.75,3.65212975]
[1772457801741,2.15417291,83.779,83.751,2.22442217]
[1772457802447,11.93630786,83.778,83.753,2.22442217]
[1772457804760,2.15417291,83.786,83.755,2.22442217]
[1772457804948,2.15417291,83.786,83.76,3.65212975]
[1772457805143,2.15417291,83.786,83.761,2.22442217]
[1772457806172,2.15417291,83.793,83.762,2.22442217]
[1772457807655,2.15417291,83.793,83.757,2.22442217]
[1772457807965,2.15417291,83.789,83.757,2.22442217]
[1772457808545,47.71768035,83.827,83.75,3.65212975]
[1772457808546,2.15417291,83.809,83.774,0.28432314]
[1772457808745,2.15417291,83.809,83.77,3.65212975]
[1772457808746,2.15417291,83.807,83.775,2.22442217]
[1772457808942,2.15417291,83.818,83.781,2.50874531]
[1772457809155,2.15417291,83.817,83.781,2.50874531]
[1772457809767,2.15417291,83.817,83.791,2.22442217]
[1772457810065,18.16733378,83.822,83.791,2.22442217]
[1772457810266,2.15417291,83.821,83.791,2.22442217]
[1772457810658,14.0844998,83.82,83.793,2.22442217]
[1772457811670,14.0844998,83.82,83.795,2.22442217]
[1772457813664,2.15417291,83.817,83.78,3.65212975]
[1772457814884,2.15417291,83.817,83.775,11.93669105]
[1772457815175,2.15417291,83.817,83.78,3.65212975]
[1772457815572,2.15417291,83.815,83.782,2.22442217]
[1772457817078,2.15417291,83.815,83.782,14.16016015]
[1772457817260,2.15417291,83.809,83.771,2.22442217]
[1772457817459,2.15417291,83.809,83.772,2.22442217]
[1772457817656,2.15417291,83.799,83.772,2.22442217]
[1772457817972,2.15417291,83.799,83.748,3.69383402]
[1772457817973,2.15417291,83.789,83.754,2.22442217]
[1772457819782,2.15417291,83.787,83.755,11.93958569]
[1772457820274,2.15417291,83.787,83.755,14.16400786]
[1772457821254,2.15417291,83.787,83.756,2.22442217]
[1772457822363,2.15417291,83.787,83.741,29.85365436]
[1772457822364,2.15417291,83.785,83.742,2.50874531]
[1772457823051,2.15417291,83.785,83.751,2.22442217]
[1772457823675,2.15417291,83.779,83.745,2.22442217]
[1772457823871,41.77308857,83.786,83.732,2.22442217]
[1772457823872,2.15417291,83.769,83.732,2.22442217]
[1772457824458,2.15417291,83.767,83.734,2.22442217]
[1772457826277,2.15417291,83.759,83.729,11.9431821]
[1772457827072,2.15417291,83.757,83.726,2.22442217]
[1772457827474,2.15417291,83.757,83.727,11.94357853]
[1772457827654,2.15417291,83.757,83.724,2.29254907]
[1772457828471,2.15417291,83.757,83.725,11.94386383]
[1772457829559,2.15417291,83.757,83.712,30.88683996]
[1772457829560,2.2806928,83.749,83.718,2.29254907]
[1772457829760,2.2806928,83.749,83.719,11.94471983]
[1772457830167,2.2806928,83.749,83.72,2.29254907]
[1772457830378,2.2806928,83.749,83.721,2.29254907]
[1772457831277,2.2806928,83.749,83.719,41.80651942]
[1772457831278,14.21828307,83.769,83.731,2.29254907]
[1772457831456,2.2806928,83.768,83.731,2.29254907]
[1772457831662,2.2806928,83.766,83.733,2.29254907]
[1772457833467,2.2806928,83.764,83.735,2.29254907]
[1772457833667,2.2806928,83.759,83.726,2.29254907]
[1772457834071,2.2806928,83.759,83.725,11.94378345]
[1772457834072,2.2806928,83.759,83.731,2.29254907]
[1772457834864,14.21885312,83.765,83.731,2.29254907]
[1772457835682,2.2806928,83.759,83.721,2.29254907]
[1772457836596,2.2806928,83.749,83.712,3.31519815]
[1772457836769,2.2806928,83.749,83.713,2.29254907]
[1772457836981,2.2806928,83.749,83.714,2.29254907]
[1772457837168,2.2806928,83.749,83.721,2.29254907]
[1772457837781,14.22127645,83.748,83.721,2.29254907]
[1772457837987,2.2806928,83.755,83.731,2.29254907]
[1772457839100,11.9390155,83.759,83.72,3.65212975]
[1772457839101,2.2806928,83.749,83.72,2.29254907]
[1772457839765,2.2806928,83.747,83.721,2.29254907]
[1772457841066,2.2806928,83.747,83.722,2.29254907]
[1772457841268,33.49950928,83.76,83.731,2.29254907]
[1772457841269,11.9390155,83.759,83.731,2.29254907]
[1772457842389,11.9390155,83.759,83.733,2.29254907]
[1772457842788,11.9390155,83.759,83.721,29.86108622]
[1772457842789,2.2806928,83.758,83.725,2.29254907]
[1772457842989,2.2806928,83.739,83.703,2.29254907]
[1772457843190,2.2806928,83.739,83.709,2.29254907]
[1772457843388,2.2806928,83.739,83.713,2.29254907]
[1772457844115,2.2806928,83.749,83.713,2.29254907]
[1772457844279,2.2806928,83.747,83.721,2.29254907]
[1772457847491,3.65212975,83.75,83.712,1.02264908]
[1772457847492,2.2806928,83.745,83.712,1.02264908]
[1772457847694,2.2806928,83.739,83.712,3.31519815]
[1772457847992,2.2806928,83.739,83.712,1.02264908]
[1772457848499,2.2806928,83.739,83.712,3.31519815]
[1772457848875,41.78784778,83.757,83.721,2.29254907]
[1772457849076,2.2806928,83.756,83.721,2.29254907]
[1772457849588,2.2806928,83.749,83.721,2.29254907]
[1772457850577,2.2806928,83.749,83.723,2.29254907]
[1772457851891,11.94058365,83.748,83.723,2.29254907]
[1772457852095,2.2806928,83.757,83.725,2.29254907]
[1772457852305,29.84586116,83.764,83.724,11.94400649]
[1772457852306,11.93944314,83.756,83.731,2.29254907]
[1772457852892,11.93944314,83.756,83.724,11.94400649]
[1772457852893,2.2806928,83.779,83.741,2.29254907]
[1772457853194,5.93282255,83.77,83.741,2.29254907]
[1772457853498,2.17205717,83.769,83.73,3.65212975]
[1772457853702,2.17205717,83.749,83.718,2.18012324]
[1772457854384,2.17205717,83.747,83.718,14.12495762]
[1772457854903,2.17205717,83.739,83.713,2.18012324]
[1772457856998,11.9420096,83.738,83.713,14.12569919]
[1772457857186,14.11406677,83.738,83.714,2.18012324]
[1772457858596,3.65212975,83.75,83.713,11.94557595]
[1772457858597,2.22898691,83.752,83.721,2.14030182]
[1772457859098,11.94015593,83.751,83.723,2.14030182]
[1772457860000,14.16914284,83.751,83.723,2.14030182]
[1772457861083,2.22898691,83.75,83.723,2.14030182]
[1772457862311,2.22898691,83.748,83.723,2.14030182]
[1772457863508,11.94072623,83.747,83.723,2.14030182]
[1772457863890,11.94072623,83.747,83.723,11.94411291]
[1772457864084,11.94072623,83.747,83.724,2.14030182]
[1772457864496,2.22898691,83.752,83.724,2.14030182]
[1772457865810,11.94411291,83.929,83.712,1.02264908]
[1772457865811,11.93886201,83.761,83.731,2.14030182]
[1772457865995,11.93687779,83.774,83.741,2.14030182]
[1772457866304,11.93687779,83.774,83.75,3.65433293]
[1772457866305,14.1658647,83.774,83.75,3.65433293]
[1772457866636,14.1658647,83.774,83.75,5.79463475]
[1772457866807,14.1658647,83.774,83.751,2.14030182]
[1772457867192,2.22898691,83.773,83.751,2.14030182]
[1772457868089,2.22898691,83.771,83.751,2.14030182]
[1772457868296,2.22898691,83.771,83.75,3.65433293]
[1772457868497,2.22898691,83.769,83.74,3.65433293]
[1772457868701,2.22898691,83.769,83.737,2.14030182]
[1772457868901,2.22898691,83.769,83.737,14.08244206]
[1772457869118,2.22898691,83.769,83.738,2.14030182]
[1772457871413,2.22898691,83.767,83.738,2.14030182]
[1772457872005,2.22898691,83.759,83.724,2.42462496]
[1772457872302,2.22898691,83.759,83.724,2.14030182]
[1772457873911,41.78705317,83.758,83.724,2.14030182]
[1772457874214,2.22898691,83.757,83.724,2.14030182]
[1772457875212,2.22898691,83.749,83.719,11.94459247]
[1772457875416,2.22898691,83.749,83.72,2.14030182]
[1772457876214,11.94058365,83.748,83.722,2.14030182]
[1772457877420,14.16957056,83.748,83.722,2.14030182]
[1772457879019,2.22898691,83.765,83.731,2.14030182]
[1772457880205,2.22898691,83.763,83.733,2.14030182]
[1772457883421,11.9385879,83.762,83.734,11.94258007]
[1772457883617,11.93751471,83.77,83.741,2.14030182]
[1772457886325,11.93687779,83.774,83.742,11.94143918]
[1772457886529,14.1658647,83.774,83.743,2.14030182]
[1772457887946,11.93616538,83.779,83.745,2.36064845]
[1772457888113,2.34467693,83.778,83.751,2.36064845]
[1772457889430,2.34467693,83.778,83.753,2.36064845]
[1772457889927,11.93560776,83.783,83.755,2.36064845]
[1772457890323,11.93366489,83.797,83.761,2.64497159]
[1772457890832,14.27699681,83.806,83.771,2.64497159]
[1772457891028,2.34467693,83.805,83.771,2.64497159]
[1772457891329,2.34467693,83.818,83.791,2.36064845]
[1772457891519,11.93020647,83.821,83.791,2.36064845]
[1772457891717,2.34467693,83.831,83.793,2.36064845]
[1772457891916,11.92890373,83.83,83.801,2.36064845]
[1772457892330,2.34467693,83.829,83.801,2.36064845]
[1772457893228,2.34467693,83.827,83.801,2.36064845]
[1772457893614,2.34467693,83.827,83.802,2.36064845]
[1772457894216,2.34467693,83.809,83.775,2.36064845]
[1772457894423,2.34467693,83.809,83.775,11.93660215]
[1772457894734,2.34467693,83.809,83.776,2.36064845]
[1772457895118,3.65433293,83.81,83.78,3.65433293]
[1772457895313,2.34467693,83.814,83.783,2.36064845]
[1772457896244,2.34467693,83.809,83.776,2.36064845]
[1772457897217,2.34467693,83.809,83.781,2.36064845]
[1772457897530,2.34467693,83.799,83.771,2.36064845]
[1772457898234,2.34467693,83.799,83.771,14.29795372]
[1772457898618,2.34467693,83.799,83.772,2.36064845]
[1772457899738,14.27813596,83.798,83.774,2.36064845]
[1772457901715,2.34467693,83.789,83.765,11.9381181]
[1772457902322,2.34467693,83.789,83.755,2.36064845]
[1772457902526,3.65433293,83.79,83.755,2.36064845]
[1772457902527,2.34467693,83.779,83.755,2.36064845]
[1772457902737,2.34467693,83.789,83.755,2.36064845]
[1772457902931,2.34467693,83.789,83.761,2.36064845]
[1772457903140,2.34467693,83.795,83.771,2.36064845]
[1772457903319,2.34467693,83.8,83.771,2.36064845]
[1772457903722,11.93331662,83.799,83.773,2.36064845]
[1772457904021,2.34467693,83.798,83.773,2.36064845]
[1772457904429,2.34467693,83.789,83.761,2.36064845]
[1772457907243,2.34467693,83.787,83.75,6.01498138]
[1772457907741,2.34467693,83.787,83.751,2.36064845]
[1772457907935,3.65433293,83.78,83.751,2.36064845]
[1772457908133,2.34467693,83.779,83.747,2.36064845]
[1772457910032,2.34467693,83.779,83.751,2.36064845]
[1772457910330,2.34467693,83.778,83.751,2.36064845]
[1772457910842,14.28009375,83.785,83.751,2.36064845]
[1772457911026,2.34467693,83.784,83.751,2.36064845]
[1772457911344,2.34467693,83.802,83.771,2.36064845]
[1772457911551,2.34467693,83.809,83.773,2.36064845]
[1772457911850,47.69640597,83.864,83.801,2.36064845]
[1772457911851,2.34467693,83.829,83.801,2.36064845]
[1772457912147,2.34467693,83.837,83.803,2.36064845]
[1772457912332,2.34467693,83.849,83.813,2.36064845]
[1772457912533,2.34467693,83.859,83.83,3.65433293]
[1772457913031,2.34467693,83.849,83.82,6.01498138]
[1772457913731,2.34467693,83.849,83.82,2.36064845]
[1772457913932,2.34315334,83.847,83.81,3.65433293]
[1772457914527,2.34315334,83.839,83.805,2.30687041]
[1772457916044,2.34315334,83.839,83.797,11.93349734]
[1772457916045,2.34315334,83.829,83.793,11.9341307]
[1772457917436,2.23503568,83.839,83.801,2.25804113]
[1772457917624,2.23503568,83.838,83.801,2.25804113]
[1772457918331,4.82477569,83.885,83.794,0.28432314]
[1772457918332,2.23503568,83.917,83.833,2.25804113]
[1772457918529,2.23503568,83.896,83.87,3.65433293]
[1772457918755,2.23503568,83.896,83.857,0.28432314]
[1772457918933,3.65433293,83.88,83.851,0.28432314]
[1772457919134,2.23503568,83.879,83.847,2.25804113]
[1772457919331,2.23503568,83.879,83.851,2.25804113]
[1772457919532,2.23503568,83.887,83.851,2.25804113]
[1772457920454,2.23503568,83.887,83.85,9.10887969]
[1772457920746,2.23503568,83.895,83.861,2.25804113]
[1772457921452,2.23503568,83.895,83.862,2.25804113]
[1772457921654,2.23503568,83.893,83.862,2.25804113]
[1772457922527,2.23503568,83.893,83.861,11.92440741]
[1772457922528,2.23503568,83.893,83.863,0.28432314]
[1772457922733,2.23503569,83.91,83.881,2.25804113]
[1772457923130,2.23503568,83.908,83.88,9.10565027]
[1772457923425,2.23503568,83.906,83.862,2.25804113]
[1772457923630,2.23503568,83.879,83.85,9.10565027]
[1772457924131,9.10565027,83.89,83.851,2.25804113]
[1772457924446,2.23503568,83.889,83.86,9.10565027]
[1772457925231,2.23503568,83.889,83.851,0.28432314]
[1772457925432,2.23503568,83.889,83.831,45.44449904]
[1772457925433,2.23503568,83.899,83.872,2.25804113]
[1772457927052,2.23503568,83.899,83.87,9.10565027]
[1772457927254,2.23503568,83.898,83.87,9.10565027]
[1772457927448,2.23503568,83.898,83.88,9.10565027]
[1772457927838,1e-08,83.91,83.891,2.25804113]
[1772457928549,2.23503568,83.908,83.871,0.28432314]
[1772457928958,2.23503568,83.908,83.871,2.25804113]
[1772457929251,2.23503568,83.899,83.853,0.28432314]
[1772457929444,2.23503568,83.889,83.854,2.25804113]
[1772457929839,2.23503568,83.889,83.85,9.10565027]
[1772457930043,2.23503568,83.889,83.851,2.25804113]
[1772457930738,2.23503568,83.889,83.86,9.10565027]
[1772457930938,2.23503568,83.889,83.851,2.25804113]
[1772457931354,2.23503568,83.887,83.86,11.3636914]
[1772457931551,2.23503568,83.887,83.86,2.25804113]
[1772457931747,2.23503568,83.887,83.852,11.92577398]
[1772457931954,2.23503568,83.887,83.852,14.18381511]
[1772457932260,2.23503568,83.887,83.86,9.10565027]